fUSD/lending_fUSD_20240606
["ID","MTS","AMOUNT","RATE_DAILY","PERIOD"]
[328675602,1717691453021,-798.28632577,0.00029998,2]
[328675603,1717691453031,-6303.71367423,0.0003,2]
[328675604,1717691453047,-1621.2205633,0.0003,2]
[328675605,1717691453061,-2017.62724224,0.0003,2]
[328675606,1717691453076,-1039.42793457,0.0002503,2]
[328675607,1717691453088,-466.70474391,0.0002503,2]
[328675608,1717691453100,-493.77814689,0.0002503,2]
[328675609,1717691453111,-6994.81339409,0.0002503,2]
[328675610,1717691453123,-5427.18943981,0.0002503,2]
[328675611,1717691453136,-655.0,0.0002503,2]
[328675612,1717691453147,-9574.80507207,0.0002503,2]
[328675613,1717691453156,-31389.29970244,0.0003,2]
[328675614,1717691453168,-31715.73820004,0.0003,2]
[328675615,1717691453180,-36001.02690477,0.0003,2]
[328675616,1717691453192,-146984.85617636,0.0003,2]
[328675617,1717691453203,-1128.34763278,0.0003,2]
[328675618,1717691453215,-9467.0496344,0.0003,2]
[328675619,1717691453285,-61.68390103,0.0003,2]
[328675620,1717691453296,-516.33162924,0.0003,2]
[328675621,1717691453309,-238171.26419906,0.0003,2]
[328675622,1717691453321,-5826.5029811,0.0003,2]
[328675623,1717691517303,155.0,0.00016711,2]
[328675624,1717691568020,-2611.20547856,0.00016377,2]
[328675625,1717691568349,-1448.84683139,0.00016711,2]
[328675626,1717691568835,-2402.42616078,0.00016711,2]
[328675635,1717691821760,179.75,0.00026073,120]
[328675833,1717692632118,-282.76675085,0.00013851,2]
[328675834,1717692632128,-155.0,0.00013862,2]
[328675835,1717692632138,-150.0,0.00013863,2]
[328675836,1717692632148,-438.53340405,0.00013899,2]
[328675837,1717692632160,-1209.45727771,0.00013899,2]
[328675838,1717692632172,-2793.69071691,0.00013899,2]
[328675839,1717692632182,-150.0,0.00013899,2]
[328675840,1717692632192,-5126.0387,0.000139,2]
[328675841,1717692632202,-283.3395,0.000139,2]
[328675842,1717692632211,-168.41883938,0.000139,2]
[328675843,1717692632221,-974.27175538,0.000139,2]
[328675844,1717692632233,-25.72824462,0.000139,2]
[328675845,1717692632243,-162.12168652,0.000139,2]
[328675846,1717692632252,-151.41784713,0.000139,2]
[328675847,1717692632262,-135.01951119,0.000139,2]
[328675848,1717692632274,-83.19074327,0.000139,2]
[328675849,1717692632283,-791.96732947,0.00013986,2]
[328675850,1717692632293,-278.84192726,0.0001399,3]
[328675851,1717692634520,-413.71807274,0.0001399,3]
[328675852,1717692634530,-151.78,0.0001399,2]
[328675853,1717692634540,-151.78,0.0001399,2]
[328675854,1717692634550,-6458.19672418,0.00013997,2]
[328675855,1717692634561,-202.2218218,0.00013998,2]
[328675856,1717692634570,-196.54622098,0.00013998,2]
[328675857,1717692634582,-269.83407313,0.00013998,2]
[328675858,1717692634592,-155.0,0.00013998,2]
[328675859,1717692634603,-156.74317224,0.00013998,2]
[328675860,1717692634612,-155.0,0.00013998,2]
[328675861,1717692634622,-287.51976629,0.00013998,2]
[328675862,1717692634632,-5697.68244742,0.00013998,2]
[328675863,1717692634641,-489.1202774,0.00013998,2]
[328675864,1717692634655,-298.3262456,0.00013998,2]
[328675865,1717692634665,-534.0306169,0.00013998,2]
[328675866,1717692634676,-448.2710794,0.00013998,2]
[328675867,1717692634686,-319.28728946,0.00013998,2]
[328675868,1717692634696,-1246.38219162,0.00013998,2]
[328675869,1717692634706,-293.43,0.00013998,2]
[328675870,1717692634716,-10076.5,0.00013998,2]
[328675871,1717692634726,-1577.29,0.00013998,2]
[328675872,1717692634736,-999.99,0.00013998,2]
[328675873,1717692634745,-542.2859949,0.00013998,2]
[328675874,1717692634755,-1283.17,0.00013998,2]
[328675875,1717692634764,-2054.49813186,0.00013999,2]
[328675876,1717692634774,-1012.30856095,0.00013999,2]
[328675877,1717692634783,-499.99,0.00013999,2]
[328675878,1717692634793,-448602.12171108,0.00014,2]
[328675879,1717692634814,-1778.48988,0.00014,2]
[328675880,1717692634826,-18036.01131854,0.00014,2]
[328675881,1717692634860,-152097.2996794,0.00014,2]
[328675882,1717692634872,-5669.67267634,0.00014,2]
[328675911,1717692637715,-445119.28616375,0.00014,2]
[328675912,1717692637765,-6261.05730229,0.00014,2]
[328675913,1717692637778,-18325.25883135,0.00014,2]
[328675914,1717692637789,-285.1012,0.00014,2]
[328675915,1717692637809,-6512.96046108,0.00014,2]
[328675916,1717692638076,-155.0,0.00014,2]
[328675917,1717692638679,-30286.63931483,0.00014,2]
[328675918,1717692638691,-37892.7426653,0.00014,2]
[328675919,1717692638703,-345783.81943987,0.00014,2]
[328675920,1717692638748,-1448.84683139,0.00014,2]
[328675929,1717692639014,-1109387.37225413,0.00014,2]
[328675932,1717692639026,-427.20419193,0.00014,2]
[328675934,1717692639038,-404.64145571,0.00014,2]
[328675936,1717692639049,-616.38,0.00014,2]
[328675938,1717692639061,-10226.56519426,0.00014,2]
[328675942,1717692639090,-6213.3111658,0.00014,2]
[328675946,1717692639104,-1656.26125011,0.00014,2]
[328675950,1717692639117,-1988.21345814,0.00014,2]
[328675956,1717692639151,-1169.55400002,0.00014,2]
[328675958,1717692639163,-37741.31464492,0.00014,2]
[328675960,1717692639176,-3194.69152,0.00014,2]
[328675973,1717692639392,-2402.42616078,0.00014,2]
[328675974,1717692639946,-2611.20547856,0.00014,2]
[328676285,1717692643151,-1300.3381988,0.00014,2]
[328676292,1717692643211,-70123.06817446,0.00014,2]
[328676294,1717692643221,-1023.975,0.00014,2]
[328676296,1717692643232,-4019.90937907,0.00014186,2]
[328676298,1717692643241,-250.0,0.00014617,2]
[328676300,1717692643251,-487.26,0.0001467,2]
[328676302,1717692643261,-1248.93,0.00014697,2]
[328676311,1717692643445,-23900.0,0.0001478,2]
[328676312,1717692643466,-275.72,0.0001492,2]
[328676313,1717692643476,-1000.0,0.0001492,2]
[328676314,1717692643486,-250.0,0.00014924,2]
[328676316,1717692643496,-1271.76,0.00014924,2]
[328676319,1717692643506,-9718.06383566,0.00015,2]
[328676321,1717692643517,-28310.36507201,0.00015,2]
[328676323,1717692643526,-210.0,0.00015289,2]
[328676325,1717692643535,-4019.90937897,0.00015615,2]
[328676326,1717692643545,-4116.86116669,0.00016711,2]
[328676328,1717692643555,-179.59,0.00016712,2]
[328676331,1717692643565,-1000.0,0.00016785,2]
[328676333,1717692643575,-165.49493537,0.000169,2]
[328676334,1717692643584,-307.3,0.0001699,2]
[328676337,1717692643594,-4019.90937897,0.00017043,2]
[328676338,1717692643604,-9050.25767328,0.00017259,2]
[328676340,1717692643614,-418.4018742,0.0001726,2]
[328676342,1717692643623,-1248.93,0.00017437,2]
[328676344,1717692643632,-173.34,0.00018001,2]
[328676346,1717692643642,-161.19,0.00018046,2]
[328676348,1717692643651,-4019.90937897,0.00018472,2]
[328676350,1717692643661,-1000.0,0.0001865,2]
[328676352,1717692643671,-150.0,0.00018759,2]
[328676354,1717692643680,-1639.94884299,0.000192,2]
[328676356,1717692643690,-151.41784711,0.00019232,2]
[328676358,1717692643700,-556.04382022,0.00019555,2]
[328676361,1717692643710,-1336.19,0.00019674,2]
[328676363,1717692643719,-4019.90937897,0.000199,2]
[328676365,1717692643729,-300.0,0.00019919,2]
[328676367,1717692643738,-1980.08690757,0.0002,2]
[328676369,1717692643748,-197.38,0.00020018,2]
[328676371,1717692643758,-196.41,0.00020019,2]
[328676373,1717692643768,-549.83455224,0.00020024,2]
[328676375,1717692643778,-226.60187199,0.000201,2]
[328676377,1717692643787,-1248.93,0.00020176,2]
[328676379,1717692643797,-171.833,0.00020201,2]
[328676381,1717692643807,-1000.0,0.00020379,2]
[328676383,1717692643816,-1000.0,0.00020515,2]
[328676386,1717692643826,-200.0,0.0002094,2]
[328676388,1717692643836,-4019.90937897,0.00021329,2]
[328676390,1717692643846,-200.0,0.0002151,2]
[328676392,1717692643856,-1000.0,0.000219,2]
[328676394,1717692643866,-220.76,0.00021918,2]
[328676396,1717692643876,-250.0,0.00021918,2]
[328676398,1717692643885,-200.0,0.0002207,2]
[328676400,1717692643894,-1000.0,0.0002238,2]
[328676403,1717692643904,-200.0,0.0002264,2]
[328676406,1717692643914,-4019.90937897,0.00022757,2]
[328676408,1717692643924,-200.0,0.0002321,2]
[328676410,1717692643934,-200.0,0.0002377,2]
[328676412,1717692643943,-264.46,0.00023811,2]
[328676414,1717692643953,-4019.90937897,0.00024186,2]
[328676416,1717692643963,-180.0,0.0002423,2]
[328676418,1717692643972,-200.0,0.0002434,2]
[328676420,1717692643982,-171.49,0.00024384,2]
[328676422,1717692643993,-157.98,0.00024384,2]
[328676424,1717692644002,-151.41784711,0.00024564,2]
[328676426,1717692644013,-1000.0,0.000247,2]
[328676428,1717692644023,-3253.46385828,0.00024798,2]
[328676431,1717692644032,-3253.46385823,0.00024798,2]
[328676433,1717692644042,-3253.46385823,0.00024798,2]
[328676435,1717692644052,-3253.46385823,0.00024798,2]
[328676437,1717692644062,-3253.46385823,0.00024798,2]
[328676439,1717692644071,-3253.46385823,0.00024798,2]
[328676441,1717692644081,-3253.46385823,0.00024798,2]
[328676443,1717692644092,-563.54108734,0.00024799,2]
[328676445,1717692644101,-563.54108727,0.00024799,2]
[328676447,1717692644111,-563.54108727,0.00024799,2]
[328676449,1717692644120,-563.54108727,0.00024799,2]
[328676451,1717692644129,-563.54108727,0.00024799,2]
[328676453,1717692644139,-563.54108727,0.00024799,2]
[328676455,1717692644148,-563.54108727,0.00024799,2]
[328676457,1717692644157,-200.0,0.000249,2]
[328676459,1717692644167,-42360.3773,0.0002493,2]
[328676461,1717692644176,-24798.3305,0.0002493,2]
[328676463,1717692644186,-3338.5617,0.0002493,2]
[328676465,1717692644195,-1000.0,0.0002493,2]
[328676467,1717692644205,-155.29079437,0.00025,2]
[328676469,1717692644215,-706.05483356,0.00025,2]
[328676471,1717692644224,-155.0,0.00025,2]
[328676473,1717692644234,-4970.31,0.00025026,2]
[328676475,1717692644244,-19763.89772466,0.0002503,2]
[328676477,1717692644254,-697.30387364,0.0002503,7]
[328676479,1717692644264,-180.0617535,0.0002503,2]
[328676481,1717692644274,-500.0,0.0002503,2]
[328676483,1717692644284,-602.88619666,0.0002503,2]
[328676485,1717692644294,-155.0,0.0002503,2]
[328676487,1717692644304,-422.02707389,0.0002503,2]
[328676489,1717692644314,-155.13656754,0.0002503,2]
[328676491,1717692644323,-257.69510538,0.0002503,2]
[328676493,1717692644333,-4841.0,0.0002504,2]
[328676494,1717692644344,-1000.0,0.00025189,2]
[328676495,1717692644354,-200.0,0.0002547,2]
[328676496,1717692644364,-2611.20547856,0.00025552,2]
[328676497,1717692644374,-4019.90937897,0.00025614,2]
[328676498,1717692644383,-200.0,0.0002604,2]
[328676499,1717692644393,-176.83322562,0.00026073,2]
[328676500,1717692644403,-33620.52700429,0.00026073,2]
[328676501,1717692644436,-1346.45243179,0.00026073,2]
[328676502,1717692644447,-289.77027147,0.00026073,2]
[328676503,1717692644457,-24651.71873134,0.00026073,2]
[328676505,1717692644466,-1042.16808619,0.00026073,2]
[328676507,1717692644476,-20260.85855017,0.00026073,2]
[328676509,1717692644487,-1046.53950054,0.00026073,2]
[328676511,1717692644496,-268531.07301202,0.00026073,2]
[328676513,1717692644506,-446.70319109,0.00026073,2]
[328676515,1717692644519,-169.04494799,0.00026073,2]
[328676517,1717692644529,-155.0,0.00026073,2]
[328676519,1717692644539,-150.0,0.00026073,2]
[328676521,1717692644548,-150.0,0.00026073,2]
[328676524,1717692644559,-150.0,0.00026073,2]
[328676526,1717692644568,-150.0,0.00026073,2]
[328676528,1717692644578,-150.0,0.00026073,2]
[328676530,1717692644587,-150.0,0.00026073,2]
[328676532,1717692644598,-150.0,0.00026073,2]
[328676534,1717692644608,-150.0,0.00026073,2]
[328676536,1717692644617,-150.0,0.00026073,2]
[328676538,1717692644627,-150.0,0.00026073,2]
[328676540,1717692644636,-150.0,0.00026073,2]
[328676542,1717692644645,-150.0,0.00026073,2]
[328676544,1717692644654,-150.0,0.00026073,2]
[328676546,1717692644664,-150.0,0.00026073,2]
[328676548,1717692644673,-150.0,0.00026073,2]
[328676550,1717692644684,-150.0,0.00026073,2]
[328676552,1717692644694,-150.0,0.00026073,2]
[328676554,1717692644703,-150.0,0.00026073,2]
[328676556,1717692644712,-150.0,0.00026073,2]
[328676558,1717692644722,-150.0,0.00026073,2]
[328676560,1717692644732,-285.96512255,0.00026073,2]
[328676562,1717692644741,-500.0,0.00026244,2]
[328676564,1717692644751,-563.54108727,0.00026344,2]
[328676566,1717692644760,-3253.46385823,0.00026344,2]
[328676568,1717692644770,-200.0,0.000266,2]
[328676570,1717692644780,-452.89746239,0.00026698,2]
[328676572,1717692644789,-151.0,0.00026877,30]
[328676574,1717692644799,-751.9104142,0.00026998,2]
[328676576,1717692644808,-170.7,0.00027004,2]
[328676578,1717692644818,-4019.90937897,0.00027043,2]
[328676580,1717692644827,-200.0,0.0002717,2]
[328676582,1717692644836,-500.0,0.0002734,2]
[328676584,1717692644847,-806.82910337,0.0002739,2]
[328676586,1717692644857,-686.07,0.00027397,10]
[328676588,1717692644866,-1308.3,0.00027397,10]
[328676590,1717692644876,-1090.25,0.00027397,10]
[328676592,1717692644886,-908.54,0.00027397,10]
[328676594,1717692644895,-500.0,0.000274,2]
[328676596,1717692644905,-151.0,0.00027425,7]
[328676598,1717692644914,-167.02,0.00027684,2]
[328676600,1717692644923,-200.0,0.0002774,2]
[328676602,1717692644933,-2185.40996864,0.000279,10]
[328676604,1717692644942,-151.0,0.00027985,4]
[328676606,1717692644951,-563.54108727,0.00028122,2]
[328676608,1717692644962,-3253.46385823,0.00028122,2]
[328676610,1717692644971,-200.0,0.000283,2]
[328676612,1717692644980,-500.0,0.00028436,2]
[328676614,1717692644990,-4019.90937897,0.00028471,2]
[328676616,1717692645000,-2009.24235392,0.00028496,2]
[328676618,1717692645010,-151.0,0.00028556,2]
[328676620,1717692645019,-200.0,0.0002887,2]
[328676622,1717692645029,-3394.04073534,0.0002893,7]
[328676624,1717692645041,-2683.57427836,0.0002893,7]
[328676626,1717692645051,-1903.0,0.000293,2]
[328676628,1717692645060,-164.0,0.00029334,2]
[328676630,1717692645069,-177.305,0.00029334,2]
[328676632,1717692645079,-150.192,0.00029334,2]
[328676634,1717692645088,-777.49,0.00029334,2]
[328676636,1717692645099,-929.30263012,0.00029398,2]
[328676638,1717692645108,-2786.0,0.000294,2]
[328676640,1717692645118,-709.0,0.000294,2]
[328676642,1717692645127,-200.0,0.0002943,2]
[328676644,1717692645137,-226.62818763,0.000295,3]
[328676646,1717692645146,-500.0,0.00029532,2]
[328676648,1717692645156,-5983.68439852,0.0002955,2]
[328676650,1717692645165,-17329.77639378,0.000296,2]
[328676652,1717692645179,-15179.45482478,0.000296,2]
[328676654,1717692645190,-972.55385994,0.000296,2]
[328676657,1717692645202,-2373.30598802,0.000296,2]
[328676659,1717692645213,-30413.65512896,0.000296,2]
[328676661,1717692645224,-831.48450349,0.000296,2]
[328676664,1717692645236,-40936.18324999,0.000296,2]
[328676665,1717692645245,-153.24544879,0.00029642,2]
[328676668,1717692645255,-330.97639578,0.00029645,2]
[328676669,1717692645264,-154.2025836,0.0002965,2]
[328676670,1717692645273,-153.24544879,0.00029666,2]
[328676671,1717692645282,-160.41787858,0.00029677,2]
[328676672,1717692645292,-448.0526952,0.00029683,2]
[328676673,1717692645301,-9481.28093386,0.000297,2]
[328676674,1717692645311,-280.0,0.000297,2]
[328676675,1717692645328,-163.40912443,0.0002973,2]
[328676676,1717692645347,-330.97639578,0.00029733,2]
[328676677,1717692645356,-412.17126416,0.00029739,2]
[328676678,1717692645366,-150.0,0.00029749,2]
[328676679,1717692645375,-150.0,0.00029752,2]
[328676680,1717692645385,-500.0,0.0002976,2]
[328676681,1717692645394,-200.0,0.0002976,2]
[328676682,1717692645404,-1500.0,0.0002976,2]
[328676683,1717692645415,-1500.0,0.0002976,2]
[328676684,1717692645427,-150.0,0.00029762,2]
[328676685,1717692645444,-10000.0,0.00029763,2]
[328676686,1717692645456,-1500.0,0.00029764,2]
[328676687,1717692645468,-300.0,0.00029772,2]
[328676688,1717692645480,-150.0,0.00029772,2]
[328676689,1717692645494,-300.0,0.00029776,2]
[328676690,1717692645511,-154.2025836,0.00029791,2]
[328676691,1717692645523,-2734.34411144,0.000298,7]
[328676692,1717692645534,-150.0,0.000298,2]
[328676693,1717692645545,-154.22504777,0.000298,2]
[328676694,1717692645557,-150.0,0.00029803,2]
[328676696,1717692645568,-150.0,0.00029806,2]
[328676697,1717692645579,-150.0,0.00029812,2]
[328676698,1717692645590,-150.0,0.00029814,2]
[328676700,1717692645602,-155.20555368,0.00029832,2]
[328676702,1717692645613,-150.0,0.00029836,2]
[328676706,1717692645625,-274.50674491,0.00029841,2]
[328676709,1717692645637,-150.0,0.00029843,2]
[328676711,1717692645649,-153.24544879,0.00029852,2]
[328676713,1717692645660,-150.0,0.00029853,2]
[328676715,1717692645671,-151.78,0.00029853,2]
[328676719,1717692645685,-150.0,0.00029861,2]
[328676722,1717692645696,-153.52790425,0.00029862,2]
[328676725,1717692645707,-500.0,0.00029863,4]
[328676728,1717692645718,-500.0,0.00029863,4]
[328676732,1717692645729,-500.0,0.00029863,4]
[328676735,1717692645742,-500.0,0.00029863,4]
[328676738,1717692645754,-500.0,0.00029863,4]
[328676741,1717692645764,-500.0,0.00029863,4]
[328676743,1717692645775,-500.0,0.00029863,4]
[328676746,1717692645786,-516.72790107,0.00029863,4]
[328676748,1717692645796,-500.0,0.00029863,4]
[328676750,1717692645807,-500.0,0.00029863,4]
[328676752,1717692645819,-500.0,0.00029863,4]
[328676754,1717692645830,-500.0,0.00029863,4]
[328676757,1717692645842,-500.0,0.00029863,4]
[328676760,1717692645853,-500.0,0.00029863,4]
[328676763,1717692645863,-500.0,0.00029863,4]
[328676765,1717692645874,-500.0,0.00029863,4]
[328676768,1717692645884,-500.0,0.00029863,4]
[328676770,1717692645893,-500.0,0.00029863,4]
[328676772,1717692645903,-500.0,0.00029863,4]
[328676774,1717692645913,-500.0,0.00029863,4]
[328676777,1717692645924,-355.80638713,0.00029863,4]
[328676779,1717692645934,-500.0,0.00029863,4]
[328676781,1717692645945,-348.12609326,0.00029863,4]
[328676783,1717692645955,-500.0,0.00029863,4]
[328676785,1717692645967,-500.0,0.00029863,4]
[328676787,1717692645979,-494.78045332,0.00029863,4]
[328676789,1717692645990,-405.49031,0.00029863,2]
[328676792,1717692646001,-500.0,0.00029863,4]
[328676794,1717692646012,-500.0,0.00029863,4]
[328676796,1717692646024,-500.0,0.00029863,4]
[328676798,1717692646036,-500.0,0.00029863,4]
[328676800,1717692646048,-500.0,0.00029863,4]
[328676803,1717692646060,-500.0,0.00029863,4]
[328676805,1717692646071,-500.0,0.00029863,4]
[328676807,1717692646083,-500.0,0.00029863,4]
[328676809,1717692646095,-500.0,0.00029863,4]
[328676812,1717692646106,-500.0,0.00029863,4]
[328676814,1717692646115,-500.0,0.00029863,4]
[328676816,1717692646126,-500.0,0.00029863,4]
[328676818,1717692646136,-500.0,0.00029863,4]
[328676820,1717692646146,-500.0,0.00029863,4]
[328676822,1717692646157,-500.0,0.00029863,4]
[328676824,1717692646167,-500.0,0.00029863,4]
[328676826,1717692646178,-226.18115348,0.00029863,4]
[328676828,1717692646189,-500.0,0.00029863,4]
[328676831,1717692646200,-500.0,0.00029863,4]
[328676833,1717692646211,-500.0,0.00029863,4]
[328676835,1717692646222,-500.0,0.00029863,4]
[328676837,1717692646233,-500.0,0.00029863,4]
[328676839,1717692646245,-500.0,0.00029863,4]
[328676841,1717692646255,-500.0,0.00029863,4]
[328676843,1717692646265,-152.1195732,0.00029863,4]
[328676845,1717692646275,-500.0,0.00029863,4]
[328676848,1717692646285,-500.0,0.00029863,4]
[328676850,1717692646296,-500.0,0.00029863,4]
[328676852,1717692646306,-500.0,0.00029863,4]
[328676854,1717692646317,-500.0,0.00029863,4]
[328676856,1717692646329,-500.0,0.00029863,4]
[328676858,1717692646342,-599.15569756,0.00029863,4]
[328676861,1717692646352,-258.52008431,0.00029863,4]
[328676863,1717692646362,-500.0,0.00029863,4]
[328676865,1717692646372,-531.34624979,0.00029863,4]
[328676867,1717692646382,-500.0,0.00029863,4]
[328676869,1717692646392,-500.0,0.00029863,4]
[328676871,1717692646402,-500.0,0.00029863,4]
[328676873,1717692646412,-500.0,0.00029863,4]
[328676875,1717692646423,-550.216659,0.00029863,4]
[328676877,1717692646433,-520.76,0.00029863,4]
[328676880,1717692646449,-500.0,0.00029863,4]
[328676882,1717692646459,-500.0,0.00029863,4]
[328676884,1717692646469,-500.0,0.00029863,4]
[328676886,1717692646481,-281.12755437,0.00029863,4]
[328676888,1717692646493,-622.80005184,0.00029863,4]
[328676891,1717692646503,-223.88550535,0.00029863,4]
[328676893,1717692646514,-500.0,0.00029863,4]
[328676895,1717692646524,-500.0,0.00029863,4]
[328676897,1717692646535,-500.0,0.00029863,4]
[328676899,1717692646545,-500.0,0.00029863,4]
[328676901,1717692646555,-500.0,0.00029863,4]
[328676903,1717692646565,-500.0,0.00029863,4]
[328676905,1717692646576,-500.0,0.00029863,4]
[328676907,1717692646586,-500.0,0.00029863,4]
[328676909,1717692646598,-500.0,0.00029863,4]
[328676912,1717692646609,-500.0,0.00029863,4]
[328676914,1717692646619,-500.0,0.00029863,4]
[328676916,1717692646629,-500.0,0.00029863,4]
[328676918,1717692646639,-500.0,0.00029863,4]
[328676920,1717692646649,-500.0,0.00029863,4]
[328676922,1717692646659,-500.0,0.00029863,4]
[328676924,1717692646669,-500.0,0.00029863,4]
[328676926,1717692646679,-546.05,0.00029863,4]
[328676928,1717692646689,-546.05,0.00029863,4]
[328676930,1717692646698,-546.05,0.00029863,4]
[328676932,1717692646708,-546.05,0.00029863,4]
[328676935,1717692646718,-546.05,0.00029863,4]
[328676937,1717692646729,-546.05,0.00029863,4]
[328676939,1717692646739,-546.05,0.00029863,4]
[328676941,1717692646749,-546.05,0.00029863,4]
[328676943,1717692646760,-546.05,0.00029863,4]
[328676945,1717692646770,-546.05,0.00029863,4]
[328676947,1717692646782,-546.05,0.00029863,4]
[328676949,1717692646792,-546.05,0.00029863,4]
[328676952,1717692646803,-546.05,0.00029863,4]
[328676954,1717692646813,-546.05,0.00029863,4]
[328676956,1717692646823,-500.0,0.00029863,2]
[328676958,1717692646833,-500.0,0.00029863,2]
[328676960,1717692646843,-500.0,0.00029863,2]
[328676962,1717692646854,-500.0,0.00029863,2]
[328676964,1717692646864,-500.0,0.00029863,4]
[328676966,1717692646874,-500.0,0.00029863,4]
[328676968,1717692646884,-500.0,0.00029863,4]
[328676971,1717692646895,-500.0,0.00029863,4]
[328676973,1717692646904,-500.0,0.00029863,4]
[328676975,1717692646914,-500.0,0.00029863,4]
[328676977,1717692646925,-500.0,0.00029863,4]
[328676979,1717692646935,-500.0,0.00029863,4]
[328676981,1717692646945,-500.0,0.00029863,4]
[328676983,1717692646956,-500.0,0.00029863,4]
[328676986,1717692646966,-500.0,0.00029863,4]
[328676988,1717692646976,-500.0,0.00029863,4]
[328676990,1717692646986,-500.0,0.00029863,4]
[328676992,1717692646996,-500.0,0.00029863,4]
[328676994,1717692647006,-500.0,0.00029863,4]
[328676996,1717692647017,-500.0,0.00029863,4]
[328676998,1717692647027,-434.41,0.00029863,4]
[328677000,1717692647038,-500.0,0.00029863,4]
[328677003,1717692647050,-500.0,0.00029863,4]
[328677005,1717692647061,-500.0,0.00029863,4]
[328677007,1717692647072,-514.48,0.00029863,4]
[328677009,1717692647082,-500.0,0.00029863,4]
[328677011,1717692647092,-500.0,0.00029863,4]
[328677013,1717692647102,-500.0,0.00029863,4]
[328677015,1717692647113,-500.0,0.00029863,4]
[328677017,1717692647124,-500.0,0.00029863,4]
[328677020,1717692647136,-500.0,0.00029863,4]
[328677022,1717692647146,-500.0,0.00029863,4]
[328677024,1717692647156,-500.0,0.00029863,4]
[328677026,1717692647166,-500.0,0.00029863,4]
[328677028,1717692647177,-500.0,0.00029863,4]
[328677030,1717692647187,-500.0,0.00029863,4]
[328677032,1717692647198,-500.0,0.00029863,4]
[328677034,1717692647208,-500.0,0.00029863,4]
[328677036,1717692647219,-500.0,0.00029863,4]
[328677039,1717692647229,-500.0,0.00029863,4]
[328677041,1717692647239,-500.0,0.00029863,4]
[328677043,1717692647249,-500.0,0.00029863,4]
[328677045,1717692647259,-500.0,0.00029863,4]
[328677047,1717692647270,-500.0,0.00029863,4]
[328677049,1717692647280,-500.0,0.00029863,4]
[328677051,1717692647290,-500.0,0.00029863,4]
[328677053,1717692647299,-500.0,0.00029863,4]
[328677055,1717692647310,-500.0,0.00029863,4]
[328677056,1717692647319,-500.0,0.00029863,4]
[328677057,1717692647330,-366.3,0.00029863,4]
[328677058,1717692647339,-500.0,0.00029863,4]
[328677059,1717692647350,-500.0,0.00029863,4]
[328677060,1717692647360,-422.87807846,0.00029863,4]
[328677061,1717692647370,-500.0,0.00029863,4]
[328677062,1717692647380,-500.0,0.00029863,4]
[328677063,1717692647390,-500.0,0.00029863,4]
[328677064,1717692647400,-500.0,0.00029863,4]
[328677065,1717692647409,-500.0,0.00029863,4]
[328677066,1717692647419,-500.0,0.00029863,4]
[328677068,1717692647429,-500.0,0.00029863,4]
[328677070,1717692647446,-500.0,0.00029863,4]
[328677072,1717692647456,-565.96060309,0.00029863,4]
[328677074,1717692647466,-500.0,0.00029863,4]
[328677076,1717692647478,-500.0,0.00029863,4]
[328677079,1717692647490,-500.0,0.00029863,4]
[328677081,1717692647500,-500.0,0.00029863,4]
[328677083,1717692647510,-240.02326985,0.00029863,4]
[328677106,1717692647715,-154.52005403,0.00029863,2]
[328677108,1717692647732,-500.0,0.00029863,4]
[328677110,1717692647741,-500.0,0.00029863,4]